bitfinex-derivatives/quotes_ETHF0:USTF0_20241231
["timestamp","ask_amount","ask_price","bid_price","bid_amount"]
[1735608736515,0.301,3328.1,3327.8,44.30881]
[1735608737123,0.30098,3328.2,3327.8,44.30881]
[1735608737320,3.2078,3328.3,3327.8,44.30881]
[1735608737919,0.30096,3328.5,3327.8,44.0078]
[1735608738117,4.2194,3328.7,3327.8,49.0078]
[1735608738322,0.30095,3328.7,3328.4,0.30096]
[1735608738524,0.30095,3328.7,3328.5,2.7723]
[1735608738730,3.47869264,3328.9,3328.5,2.7723]
[1735608739026,0.30095,3328.6,3328.5,2.7723]
[1735608740523,0.30092,3328.9,3328.6,0.30094]
[1735608741322,0.30095,3328.6,3328.5,2.7723]
[1735608741520,2.29353348,3329.0,3328.5,3.07325]
[1735608741521,0.30092,3328.9,3328.5,3.07325]
[1735608741724,0.30094,3328.8,3328.5,3.07325]
[1735608742025,0.30093,3328.8,3328.6,0.30095]
[1735608742522,0.30094,3328.7,3328.5,3.07325]
[1735608742724,0.30093,3328.8,3328.6,0.30095]
[1735608742926,3.2078,3329.1,3328.5,3.07325]
[1735608742927,0.30095,3328.7,3328.5,3.07325]
[1735608744223,3.2078,3329.1,3328.5,2.7723]
[1735608744426,0.30094,3328.7,3328.5,2.7723]
[1735608744626,0.30095,3328.6,3328.5,3.07325]
[1735608744916,0.30095,3328.6,3328.5,2.7723]
[1735608750720,0.30094,3328.7,3328.5,3.07325]
[1735608750917,0.30094,3328.7,3328.5,2.7723]
[1735608751115,0.30094,3328.7,3328.6,0.30095]
[1735608751316,0.30094,3328.8,3328.6,0.30095]
[1735608751519,3.50871,3329.1,3328.9,0.30091]
[1735608751917,3.2078,3329.1,3328.9,0.30092]
[1735608752228,0.30092,3328.9,3328.7,0.30094]
[1735608752431,0.30092,3328.9,3328.8,0.30093]
[1735608752825,0.30092,3328.9,3328.7,0.30094]
[1735608753022,0.30092,3328.9,3328.5,2.7723]
[1735608753222,3.2078,3329.1,3328.5,2.7723]
[1735608753422,0.30093,3328.9,3328.7,0.30093]
[1735608753727,0.30092,3329.0,3328.9,0.30092]
[1735608753924,3.2078,3329.1,3328.5,2.7723]
[1735608754223,3.50871,3329.1,3328.5,3.5247]
[1735608754424,4.48119264,3329.6,3328.7,3.2078]
[1735608754631,0.30087,3329.5,3329.3,0.30088]
[1735608754930,0.30087,3329.5,3329.4,2.9125]
[1735608755423,5.77222612,3329.6,3329.2,1.29]
[1735608755624,0.30088,3329.3,3329.2,2.2377]
[1735608756529,2.29353348,3329.6,3329.2,2.2377]
[1735608756530,0.30088,3329.4,3329.2,2.53859]
[1735608756830,0.30087,3329.5,3329.3,0.30088]
[1735608757830,0.30085,3329.7,3329.2,2.2377]
[1735608758027,0.30085,3329.7,3329.4,0.30087]
[1735608758329,0.30083,3329.9,3329.6,0.30085]
[1735608758529,0.30084,3329.8,3329.5,3.50866]
[1735608758722,6.43613348,3330.2,3329.5,3.2078]
[1735608759118,0.30084,3329.8,3329.5,3.50866]
[1735608759432,6.43613348,3330.2,3329.5,3.2078]
[1735608759628,0.30083,3329.9,3329.6,0.30085]
[1735608759931,6.43613348,3330.2,3329.5,8.2078]
[1735608759932,3.2078,3330.2,3329.5,8.2078]
[1735608760231,3.47869264,3330.6,3330.1,3.50861]
[1735608760232,0.30078,3330.5,3330.1,3.50861]
[1735608760531,0.30078,3330.5,3330.2,4.0807]
[1735608761028,0.30078,3330.5,3330.2,4.3815]
[1735608761620,3.2078,3330.7,3330.2,4.3815]
[1735608761621,0.30076,3330.8,3330.2,4.0807]
[1735608761827,0.30075,3330.8,3330.5,3.50857]
[1735608762328,0.30075,3330.8,3330.6,40.8]
[1735608763127,0.30074,3330.9,3330.6,40.8]
[1735608763332,2.29353348,3331.1,3330.5,3.2078]
[1735608763527,2.29353348,3331.1,3330.2,4.0807]
[1735608763528,5.50133348,3331.1,3330.2,4.3815]
[1735608763730,0.30077,3330.6,3330.2,4.3815]
[1735608764028,0.30073,3331.0,3330.3,40.8]
[1735608764230,0.30077,3330.6,3330.3,40.8]
[1735608764633,5.50133348,3331.1,3330.3,40.8]
[1735608764938,0.30079,3330.4,3330.2,4.0807]
[1735608765126,0.30076,3330.7,3330.2,4.3815]
[1735608765323,0.30078,3330.5,3330.2,4.0807]
[1735608765525,0.30078,3330.5,3330.2,4.3815]
[1735608765731,5.50133348,3331.1,3330.2,4.0807]
[1735608765931,0.30076,3330.8,3330.5,0.30077]
[1735608766333,5.50133348,3331.1,3330.7,0.30076]
[1735608766334,0.30073,3331.0,3330.7,0.30076]
[1735608766632,3.2078,3331.1,3330.7,0.30076]
[1735608766633,3.50853,3331.1,3330.8,0.9678]
[1735608766833,3.50853,3331.1,3330.9,1.8467]
[1735608767032,8.56899264,3331.5,3331.0,1.289]
[1735608767330,6.68649264,3331.5,3331.3,0.3007]
[1735608767540,3.2078,3331.5,3331.3,0.3007]
[1735608767739,3.47869264,3331.9,3331.4,0.9489]
[1735608767936,3.77934264,3331.9,3331.5,0.30068]
[1735608768131,3.47869264,3331.9,3331.7,0.30067]
[1735608768336,3.47869264,3331.9,3331.8,1.289]
[1735608768531,3.77934264,3331.9,3331.8,1.289]
[1735608768841,0.30069,3331.5,3331.4,0.9489]
[1735608769334,3.2078,3332.0,3331.4,0.9489]
[1735608769534,3.50844,3332.0,3331.5,0.30069]
[1735608769734,3.50844,3332.0,3331.6,1.8187]
[1735608769934,0.30066,3331.8,3331.6,1.8187]
[1735608770638,0.30068,3331.6,3331.5,3.2078]
[1735608770838,0.30071,3331.2,3331.1,4.1781]
[1735608771040,0.30071,3331.2,3331.1,5.4671]
[1735608771635,0.30071,3331.2,3331.1,4.4968]
[1735608773540,0.9734,3331.5,3331.1,4.4968]
[1735608773541,2.29353348,3332.3,3331.1,9.4968]
[1735608773730,3.19233348,3332.3,3331.6,0.30067]
[1735608773933,3.94389348,3332.3,3331.7,2.7392]
[1735608774131,0.30066,3331.9,3331.8,0.30066]
[1735608774441,0.30063,3332.2,3331.8,1.289]
[1735608774641,2.29353348,3332.6,3331.8,1.289]
[1735608774938,0.30059,3332.6,3332.1,3.2078]
[1735608775240,0.30059,3332.6,3331.8,8.58253348]
[1735608775241,0.30057,3332.9,3332.6,0.30058]
[1735608775438,0.30056,3332.9,3332.6,1.289]
[1735608775637,0.30057,3332.8,3332.6,1.289]
[1735608775842,0.30056,3332.9,3332.6,1.289]
[1735608776042,0.8988,3333.2,3332.6,1.289]
[1735608776240,1.19933,3333.2,3332.8,0.30056]
[1735608776436,1.19933,3333.2,3332.7,0.8898]
[1735608776437,3.2078,3333.7,3332.9,3.2078]
[1735608776642,0.3005,3333.6,3333.2,2.29353348]
[1735608776841,0.3005,3333.6,3333.2,0.9106]
[1735608777049,0.3005,3333.6,3333.3,3.2078]
[1735608777437,0.9099,3333.7,3333.4,1.289]
[1735608777737,0.9099,3333.7,3332.9,2.29353348]
[1735608777738,0.30054,3333.1,3333.0,40.8]
[1735608778040,0.30054,3333.1,3333.0,1.289]
[1735608780241,0.75115,3334.1,3333.0,1.289]
[1735608780242,3.2078,3334.3,3333.6,0.3005]
[1735608780439,3.2078,3334.3,3333.0,9.23163521]
[1735608780440,3.2078,3334.3,3333.5,3.2078]
[1735608780742,4.84193521,3334.8,3333.5,3.2078]
[1735608780743,4.84193521,3334.8,3333.9,0.30046]
[1735608780941,0.30043,3334.4,3333.9,4.79326]
[1735608781141,4.84193521,3334.8,3333.9,4.79326]
[1735608781442,0.30042,3334.4,3333.9,4.79326]
[1735608781644,0.30042,3334.4,3333.9,4.4928]
[1735608781843,0.30044,3334.3,3333.9,1.2827513]
[1735608782045,0.30043,3334.4,3333.9,1.5832113]
[1735608782242,3.2078,3334.5,3333.9,4.4905513]
[1735608782445,3.2078,3334.5,3329.4,21.23100593]
[1735608782446,2.94263521,3334.4,3333.1,4.0991]
[1735608782746,0.3005,3333.6,3333.2,1.58553]
[1735608783348,1.8361,3334.0,3333.2,1.285]
[1735608783543,1.8361,3334.0,3333.5,3.2078]
[1735608783544,0.9049,3334.0,3333.5,3.2078]
[1735608783749,1.20536,3334.0,3333.6,0.30049]
[1735608783949,1.20536,3334.0,3333.6,1.20819]
[1735608784157,0.9049,3334.0,3333.2,1.285]
[1735608784648,0.3005,3333.6,3333.2,1.58553]
[1735608784842,0.9049,3334.0,3333.2,1.285]
[1735608785146,0.3005,3333.6,3333.2,1.285]
[1735608785339,0.9049,3334.0,3333.2,1.285]
[1735608785738,0.9049,3334.0,3333.0,3.2078]
[1735608785739,3.2078,3333.7,3333.0,3.2078]
[1735608785944,0.30054,3333.1,3333.0,3.2078]
[1735608786552,0.30057,3332.8,3332.5,1.285]
[1735608787041,0.3006,3332.5,3332.3,0.9077]
[1735608787247,0.30061,3332.3,3332.1,1.285]
[1735608787456,0.3006,3332.5,3332.1,1.58562]
[1735608787638,0.8988,3332.9,3332.1,1.285]
[1735608787840,0.8988,3332.9,3332.2,3.2078]
[1735608788050,0.30058,3332.7,3332.3,0.30061]
[1735608788743,4.1066,3332.9,3332.2,3.2078]
[1735608789141,0.30057,3332.8,3332.4,0.3006]
[1735608790245,4.0969,3333.3,3332.7,3.2078]
[1735608790449,3.2078,3333.3,3333.0,0.30055]
[1735608790744,3.2078,3333.3,3332.9,1.285]
[1735608790949,0.30055,3333.0,3332.9,1.285]
[1735608792347,0.3006,3332.4,3332.3,3.2078]
[1735608793652,3.2078,3332.4,3331.8,3.2078]
[1735608793947,0.30068,3331.7,3331.6,1.285]
[1735608794346,0.30069,3331.5,3331.4,40.8]
[1735608794546,0.30069,3331.5,3331.1,0.30072]
[1735608795148,0.3007,3331.4,3331.1,1.285]
[1735608795548,0.9901,3331.9,3330.9,44.0078]
[1735608795754,0.30073,3331.0,3330.9,44.0078]
[1735608795952,2.65815,3331.9,3330.9,44.0078]
[1735608795953,0.75165,3331.8,3330.9,44.0078]
[1735608796147,0.30072,3331.2,3330.9,44.0078]
[1735608796658,0.30072,3331.2,3330.9,45.2928]
[1735608798153,3.2078,3331.7,3330.9,45.2928]
[1735608798353,0.3007,3331.4,3331.0,0.30073]
[1735608798553,0.30068,3331.6,3331.0,0.9721]
[1735608798757,0.3007,3331.4,3331.0,0.9721]
[1735608798956,0.3007,3331.3,3331.0,0.9721]
[1735608799650,0.30073,3331.0,3330.9,44.0078]
[1735608799850,0.30073,3331.1,3330.9,44.0078]
[1735608800259,0.30072,3331.1,3330.9,44.0078]
[1735608800456,0.30073,3331.1,3330.9,44.0078]
[1735608800761,0.9916,3331.6,3330.9,44.0078]
[1735608801059,0.30071,3331.2,3330.9,44.30854]
[1735608801462,0.30069,3331.5,3331.1,0.30071]
[1735608801660,3.50847,3331.7,3331.3,0.3007]
[1735608801959,0.30068,3331.6,3331.2,1.232]
[1735608802161,0.30069,3331.5,3331.2,1.232]
[1735608802466,0.30069,3331.5,3331.4,40.8]
[1735608804666,0.30068,3331.6,3331.4,40.8]
[1735608805063,0.30068,3331.6,3331.5,1.8609]
[1735608805262,3.2078,3331.7,3331.5,1.8609]
[1735608805663,3.2078,3332.1,3331.6,1.285]
[1735608805864,3.50843,3332.1,3331.8,0.30065]
[1735608806064,1.25741,3332.4,3332.0,0.30063]
[1735608806364,1.25741,3332.4,3332.1,0.30063]
[1735608806957,1.25741,3332.4,3332.0,0.30063]
[1735608807165,0.30061,3332.3,3332.0,0.30063]
[1735608807465,0.30061,3332.3,3331.9,0.30064]
[1735608807865,0.30062,3332.2,3331.9,0.30064]
[1735608808259,0.30063,3332.1,3331.8,0.30065]
[1735608808462,0.30063,3332.1,3331.8,0.30066]
[1735608808662,0.30062,3332.3,3331.9,0.30064]
[1735608808863,0.30062,3332.3,3332.0,1.21733]
[1735608809265,0.30062,3332.2,3332.1,0.9335]
[1735608810467,1.0521,3332.5,3331.7,3.2078]
[1735608810666,0.30065,3331.9,3331.8,0.9532]
[1735608810866,0.75152,3332.4,3331.5,0.948]
[1735608810867,3.03959075,3332.4,3331.5,0.948]
[1735608811065,0.30068,3331.6,3331.5,0.948]
[1735608811361,0.30069,3331.5,3331.4,1.289]
[1735608811567,0.30069,3331.4,3331.2,1.8658]
[1735608812468,0.9318,3331.7,3331.2,1.8658]
[1735608812867,0.3007,3331.3,3331.2,1.8658]
[1735608813571,0.30067,3331.7,3331.4,0.30069]
[1735608813770,0.30069,3331.5,3331.2,2.16651]
[1735608814362,3.2078,3331.8,3331.2,1.8658]
[1735608814568,0.3007,3331.3,3331.2,1.8658]
[1735608815066,6.47535235,3332.3,3331.2,1.8658]
[1735608815265,2.30705235,3332.3,3331.9,3.2078]
[1735608815469,2.30705235,3332.3,3332.2,0.30062]
[1735608815664,2.30705235,3332.4,3332.3,0.30061]
[1735608816067,2.30705235,3332.4,3332.3,41.10061]
[1735608816465,2.30705235,3332.4,3332.3,40.8]
[1735608816671,2.30705235,3332.4,3332.3,41.10061]
[1735608816871,0.3006,3332.5,3332.3,40.8]
[1735608817166,3.2078,3332.7,3332.0,4.2119]
[1735608817167,0.30062,3332.2,3332.0,2.9229]
[1735608817478,0.30061,3332.4,3332.1,1.58963]
[1735608817671,0.30059,3332.6,3332.2,41.10062]
[1735608817863,3.2078,3332.7,3332.2,41.10062]
[1735608817864,0.3006,3332.5,3332.2,41.10062]
[1735608818566,0.30061,3332.4,3332.1,1.58963]
[1735608818968,0.3006,3332.4,3332.1,1.58963]
[1735608819468,3.2078,3332.7,3332.1,1.289]
[1735608819868,0.30062,3332.3,3332.1,1.289]
[1735608820569,0.30062,3332.2,3332.0,2.9229]
[1735608820774,0.9667,3332.6,3332.0,4.2119]
[1735608820964,3.2078,3332.7,3332.0,4.2119]
[1735608822063,3.2078,3332.7,3332.2,2.94729991]
[1735608822376,5.81540235,3333.1,3332.8,0.30056]
[1735608822572,3.50835,3333.1,3332.8,1.58856]
[1735608822768,0.9334,3333.4,3332.9,0.30056]
[1735608822964,0.9334,3333.4,3333.2,0.30053]
[1735608823165,5.81536235,3333.5,3333.2,0.30053]
[1735608823468,0.30053,3333.3,3333.0,0.9335]
[1735608823872,0.30052,3333.4,3333.0,1.23405]
[1735608824071,0.30052,3333.4,3333.0,0.9335]
[1735608824570,0.30053,3333.3,3333.0,1.23404]
[1735608825070,3.2078,3333.5,3333.0,0.9335]
[1735608825271,0.30053,3333.3,3333.0,0.9335]
[1735608825577,3.2078,3333.5,3332.8,1.288]
[1735608825777,0.30054,3333.2,3332.8,1.288]
[1735608825977,3.2078,3333.5,3332.8,1.288]
[1735608825978,0.30054,3333.1,3332.8,1.288]
[1735608826469,0.30054,3333.1,3332.9,40.8]
[1735608826977,3.2078,3333.1,3332.5,2.9312]
[1735608827177,0.3006,3332.5,3332.2,1.288]
[1735608827880,6.15509991,3332.6,3331.7,7.07700197]
[1735608828070,0.3006,3332.5,3332.1,0.30063]
[1735608828274,0.30062,3332.3,3331.9,0.30064]
[1735608828475,0.30064,3332.1,3331.8,6.0782]
[1735608828675,3.2078,3332.6,3331.8,2.8704]
[1735608828875,0.3006,3332.5,3332.1,0.30063]
[1735608829180,0.30062,3332.3,3331.9,0.30065]
[1735608829385,3.2078,3332.6,3331.8,6.0782]
[1735608829680,3.2078,3332.6,3331.8,6.82985]
[1735608830177,3.2078,3332.6,3332.5,0.3006]
[1735608830380,3.2078,3332.6,3332.4,0.3006]
[1735608830573,3.2078,3332.6,3332.5,1.5886]
[1735608830776,2.30705235,3333.2,3332.5,1.288]
[1735608831083,2.30705235,3333.2,3333.1,0.30054]
[1735608831779,3.2078,3333.4,3333.3,0.30052]
[1735608831981,3.2078,3333.4,3333.3,1.288]
[1735608832180,3.50831,3333.4,3333.3,1.288]
[1735608838084,2.30705235,3333.7,3333.4,0.30051]
[1735608838278,2.30705235,3333.7,3333.5,0.9314]
[1735608838587,2.60754235,3333.7,3333.5,0.9314]
[1735608838782,2.30705235,3333.7,3333.5,0.9314]
[1735608839080,2.60754235,3333.7,3333.5,0.9314]
[1735608839277,0.3005,3333.6,3333.3,1.288]
[1735608839478,0.3005,3333.6,3333.3,1.58852]
[1735608839779,2.30705235,3333.7,3333.3,1.288]
[1735608839986,0.9184,3333.7,3333.3,1.288]
[1735608840382,0.30051,3333.4,3333.3,1.288]
[1735608840575,0.30054,3333.1,3333.0,3.2078]
[1735608840981,1.8668,3333.7,3333.0,3.2078]
[1735608840982,0.9184,3333.7,3333.0,3.2078]
[1735608841185,0.30051,3333.5,3333.2,0.30053]
[1735608841384,0.30051,3333.5,3333.2,1.30693]
[1735608842285,0.9184,3333.7,3333.2,1.0064]
[1735608842585,0.9184,3333.7,3333.1,0.9273]
[1735608842586,0.30053,3333.2,3333.1,0.9273]
[1735608843675,0.30057,3332.8,3332.5,1.28919]
[1735608843879,0.30057,3332.8,3332.5,0.30059]
[1735608844086,0.30057,3332.8,3332.4,42.082]
[1735608844281,1.0001,3333.1,3332.4,42.082]
[1735608844282,0.30058,3332.7,3332.4,42.3826]
[1735608844581,6.0001,3333.1,3332.3,3.2078]
[1735608844885,0.9411,3332.6,3332.3,3.2078]
[1735608845087,0.3006,3332.5,3332.3,3.2078]
[1735608845578,0.30056,3332.9,3332.6,0.30058]
[1735608845784,0.30056,3332.9,3332.3,3.2078]
[1735608845785,1.0001,3333.1,3332.5,0.30059]
[1735608846087,0.30058,3332.7,3332.6,1.9394]
[1735608846285,1.0001,3333.1,3332.3,3.2078]
[1735608846487,0.3006,3332.4,3332.3,3.2078]
[1735608846683,0.30059,3332.6,3332.3,3.50841]
[1735608846885,0.30054,3333.1,3332.8,0.30057]
[1735608847087,0.30055,3333.0,3332.7,1.58257]
[1735608847282,0.30056,3332.9,3332.8,1.9418]
[1735608848285,3.2078,3333.2,3332.8,1.9418]
[1735608848487,0.30056,3333.0,3332.8,1.9418]
[1735608848686,3.2078,3333.2,3332.8,1.9418]
[1735608848889,0.30057,3332.8,3332.7,1.282]
[1735608850287,0.9352,3333.0,3332.3,3.2078]
[1735608850487,0.3006,3332.4,3332.3,3.2078]
[1735608850789,0.30063,3332.1,3332.0,40.8]
[1735608850990,0.30065,3332.0,3331.8,1.282]
[1735608851185,0.30065,3331.9,3331.8,1.282]
[1735608852284,0.952,3332.3,3332.1,0.30063]
[1735608852485,3.2078,3332.8,3331.8,1.282]
[1735608852486,3.2078,3332.8,3332.2,0.30062]
[1735608852688,3.2078,3332.8,3332.3,40.8]
[1735608852689,0.3006,3332.5,3332.3,40.8]
[1735608852884,0.9588,3332.9,3332.7,0.30057]
[1735608853090,0.30056,3333.0,3332.7,0.30057]
[1735608853590,3.2078,3333.2,3332.6,1.283]
[1735608853591,3.2078,3333.2,3333.1,0.30054]
[1735608853888,3.2078,3333.9,3333.1,3.2078]
[1735608854094,0.30046,3334.1,3333.7,0.30049]
[1735608854293,0.30043,3334.3,3333.7,1.283]
[1735608854586,0.9163,3334.5,3333.8,41.8067]
[1735608854792,0.9588,3334.6,3333.9,3.2078]
[1735608854998,0.9588,3334.6,3333.8,41.8067]
[1735608854999,0.30047,3333.9,3333.8,41.8067]
[1735608855787,0.30047,3333.9,3333.8,40.8]
[1735608856093,0.9163,3334.2,3333.5,1.282]
[1735608856293,0.30049,3333.7,3333.5,1.282]
[1735608856482,0.9163,3334.2,3333.5,1.282]
[1735608856687,0.3005,3333.6,3333.5,1.282]
[1735608856889,0.30049,3333.7,3333.5,1.282]
[1735608857694,0.3005,3333.6,3333.5,1.282]
[1735608862388,3.2078,3333.8,3333.5,1.282]
[1735608862588,3.2078,3334.4,3333.7,3.2078]
[1735608862891,3.2078,3334.8,3333.8,0.9322]
[1735608863193,3.2078,3334.8,3334.4,0.30042]
[1735608863194,3.50819,3334.8,3334.4,0.30042]
[1735608863388,3.50819,3334.8,3334.3,1.282]
[1735608863389,3.2078,3334.8,3334.3,1.282]
[1735608863788,0.30037,3335.0,3334.6,0.3004]
[1735608863990,0.9592,3335.3,3334.3,1.282]
[1735608864193,0.9592,3335.3,3334.6,3.2078]
[1735608864396,0.30036,3335.1,3334.7,0.3004]
[1735608864589,0.30039,3334.9,3334.7,0.9367]
[1735608864793,0.9592,3335.3,3334.7,0.9367]
[1735608865090,0.30039,3334.8,3334.7,0.9367]
[1735608865298,0.30036,3335.1,3334.7,0.9367]
[1735608865484,0.9592,3335.3,3334.7,0.9367]
[1735608865692,0.30037,3335.0,3334.7,0.9367]
[1735608865894,0.30038,3334.9,3334.8,0.9704]
[1735608866194,2.32746815,3335.2,3334.8,0.9704]
[1735608866195,0.30037,3335.0,3334.8,0.9704]
[1735608866393,0.30038,3335.0,3334.8,0.9704]
[1735608866697,0.30038,3334.9,3334.8,0.9704]
[1735608866894,2.32746815,3335.3,3334.7,0.9367]
[1735608867095,0.30039,3334.8,3334.7,0.9367]
[1735608872398,0.30038,3335.0,3334.7,0.9367]
[1735608872600,0.30037,3335.0,3334.7,2.17849]
[1735608872796,0.30036,3335.1,3334.7,2.17849]
[1735608873002,3.2078,3335.4,3334.8,40.8]
[1735608873305,0.30037,3335.1,3334.8,40.8]
[1735608874399,0.30036,3335.1,3334.7,2.17849]
[1735608874597,0.30038,3335.0,3334.7,1.8781]
[1735608874801,0.30038,3335.0,3334.7,2.1785]
[1735608875101,0.30038,3335.0,3334.8,40.8]
[1735608875294,3.2078,3335.4,3334.7,1.8781]
[1735608875500,0.30039,3334.8,3334.7,1.8781]
[1735608875690,0.30041,3334.5,3334.4,0.9704]
[1735608875897,0.30043,3334.3,3334.2,1.0012]
[1735608876706,3.2078,3334.4,3333.8,0.9687]
[1735608877006,0.30047,3333.9,3333.8,0.9687]
[1735608877696,0.30049,3333.7,3333.6,1.0012]
[1735608882000,0.30048,3333.8,3333.6,1.0012]
[1735608882507,0.30048,3333.9,3333.6,1.30169]
[1735608882704,0.30048,3333.8,3333.7,40.8]
[1735608884402,0.30049,3333.7,3333.6,1.0012]
[1735608885220,3.2078,3333.8,3333.4,42.085]
[1735608885221,0.3005,3333.5,3333.4,42.085]
[1735608886301,0.3005,3333.5,3332.8,3.2078]
[1735608886608,0.30056,3332.9,3332.8,4.4928]
[1735608887005,0.9638,3333.7,3332.8,4.4928]
[1735608887006,0.30053,3333.3,3332.8,45.2928]
[1735608887202,3.2078,3333.8,3333.2,3.2078]
[1735608887404,0.30052,3333.4,3333.3,2.9135]
[1735608887711,3.50832,3333.4,3333.3,2.9135]
[1735608888308,0.30052,3333.3,3333.2,1.285]
[1735608889509,0.30055,3333.0,3332.9,0.9475]
[1735608889810,0.30056,3332.9,3332.8,40.8]
[1735608890709,0.30057,3332.8,3332.7,1.285]
[1735608891506,0.9805,3332.9,3332.2,5.0538]
[1735608891706,0.30061,3332.3,3332.2,3.2078]
[1735608892107,0.30064,3332.0,3331.9,1.8842]
[1735608892308,0.75155,3332.3,3331.8,4.7113282]
[1735608892309,0.30065,3331.9,3331.8,4.7113282]
[1735608892616,0.30068,3331.6,3331.5,6.9558282]
[1735608892814,0.30068,3331.6,3331.5,47.7558282]
[1735608894007,0.30068,3331.6,3331.5,43.0445]
[1735608894512,0.30069,3331.5,3331.0,4.1732]
[1735608894812,0.30072,3331.1,3331.0,0.9654]
[1735608895009,0.30072,3331.1,3331.0,41.7654]
[1735608898510,0.30072,3331.1,3331.0,43.0504]
[1735608901818,3.2078,3331.3,3331.0,41.7654]
[1735608903218,3.2078,3331.3,3331.1,2.58979408]
[1735608903416,3.2078,3332.3,3331.5,0.30068]
[1735608903615,3.2078,3332.3,3331.3,1.282]
[1735608903616,0.9303,3332.2,3331.3,1.282]
[1735608903921,0.9303,3332.2,3331.6,40.8]
[1735608904118,0.922,3332.5,3331.7,2.28907408]
[1735608904327,5.53526815,3332.7,3331.8,1.8728]
[1735608904328,4.1673,3332.7,3331.8,1.8728]
[1735608904619,4.1673,3332.7,3331.9,0.30064]
[1735608904915,0.3006,3332.5,3331.8,5.0806]
[1735608905212,0.30059,3332.6,3331.8,5.0806]
[1735608905617,0.3006,3332.5,3331.8,5.0806]
[1735608906207,4.1673,3332.7,3331.8,5.0806]
[1735608906411,4.46788,3332.7,3331.9,0.30064]
[1735608906817,0.30059,3332.6,3331.8,5.38125]
[1735608907010,0.3006,3332.5,3331.8,5.0806]
[1735608907412,0.30063,3332.1,3331.9,1.282]
[1735608907620,3.2078,3332.3,3331.9,1.282]
[1735608907823,0.30062,3332.2,3331.9,1.282]
[1735608908014,3.2078,3332.3,3331.8,5.0806]
[1735608908213,0.30064,3332.1,3331.8,6.3626]
[1735608908519,3.50842,3332.3,3331.8,6.3626]
[1735608908719,0.30061,3332.4,3331.8,6.3626]
[1735608908918,4.1673,3332.7,3331.8,6.3626]
[1735608908919,3.2078,3332.3,3331.8,6.3626]
[1735608909215,0.30064,3332.0,3331.8,6.3626]
[1735608909415,3.2078,3332.3,3331.8,6.3626]
[1735608909719,0.30065,3331.9,3331.8,3.2078]
[1735608909917,0.30068,3331.6,3331.5,0.9666]
[1735608911714,0.3007,3331.3,3331.2,40.8]
[1735608911910,0.30072,3331.1,3331.0,1.282]
[1735608912111,0.30076,3330.7,3330.6,2.7568]
[1735608912317,0.30076,3330.7,3330.6,43.5568]
[1735608919125,3.2078,3331.0,3330.6,43.5568]
[1735608919330,3.2078,3331.4,3330.8,2.28907408]
[1735608919730,3.2078,3331.4,3331.3,0.3007]
[1735608919931,0.7516,3332.1,3331.3,4.4898]
[1735608919932,3.2078,3332.0,3331.3,4.4898]
[1735608920135,0.8557,3332.4,3331.6,3.2078]
[1735608920329,0.8557,3332.4,3331.7,43.08907408]
[1735608920733,0.30066,3331.8,3331.7,40.8]
[1735608924840,0.30066,3331.8,3330.9,3.2078]
[1735608924841,0.75168,3331.7,3330.9,3.2078]
[1735608925049,0.30073,3331.0,3330.9,4.4898]
[1735608926741,0.30073,3331.1,3330.9,4.4898]
[1735608926947,0.30073,3331.0,3330.9,4.4898]
[1735608927440,0.30076,3330.7,3330.6,40.8]
[1735608927635,3.2078,3330.7,3330.1,1.58281]
[1735608927839,3.2078,3330.7,3330.0,3.2078]
[1735608928046,3.2078,3330.7,3330.1,1.58281]
[1735608928346,0.30078,3330.5,3330.2,40.8]
[1735608928540,0.30079,3330.4,3330.2,40.8]
[1735608929137,3.2078,3330.7,3330.2,43.08907408]
[1735608929440,0.30075,3330.8,3330.5,0.30077]
[1735608929639,0.30075,3330.8,3330.6,0.8478]
[1735608929947,2.28907408,3331.3,3330.6,1.7439]
[1735608930149,0.30076,3330.7,3330.6,1.7439]
[1735608930644,0.75179,3331.2,3330.4,3.2078]
[1735608930843,0.30078,3330.5,3330.4,4.4898]
[1735608931350,7.78434802,3331.4,3330.4,4.4898]
[1735608931549,7.03260802,3331.4,3330.4,4.79058]
[1735608931748,0.30076,3330.8,3330.4,4.79058]
[1735608932238,0.30074,3330.9,3330.5,0.30077]
[1735608932443,7.03260802,3331.4,3330.4,4.4898]
[1735608932644,0.30076,3330.7,3330.4,4.4898]
[1735608932941,0.30076,3330.7,3330.4,4.79058]
[1735608933345,0.75177,3331.3,3330.5,0.30077]
[1735608933346,0.30071,3331.2,3330.5,0.30077]
[1735608933547,0.30075,3330.8,3330.5,0.30077]
[1735608933850,0.30075,3330.8,3330.6,0.9224]
[1735608934250,0.30076,3330.7,3330.6,0.9224]
[1735608934453,0.75179,3331.2,3330.4,4.4898]
[1735608934647,0.30077,3330.6,3330.4,5.4122]
[1735608936548,0.75179,3331.2,3330.4,5.4122]
[1735608936852,0.30078,3330.5,3330.4,4.4898]
[1735608937851,0.30077,3330.7,3330.4,4.79058]
[1735608938752,0.30077,3330.7,3330.4,4.4938]
[1735608939154,0.30077,3330.7,3330.4,4.79458]
[1735608939453,2.32746815,3331.2,3330.4,4.4938]
[1735608939650,0.30078,3330.5,3330.4,4.4938]
[1735608940543,0.8528,3330.7,3330.4,4.4938]
[1735608940748,0.30076,3330.7,3330.5,0.30077]